[Event "Titled Tuesday Blitz November 29 Early 2022"]
[White "Le, Tuan Minh"]
[Black "Postnikov, Daniil"]
[WhiteFideId "12401153"]
[BlackFideId "4166329"]
[WhiteElo "2530"]
[BlackElo "2261"]
[Result "1/2-1/2"]
[Round "02"]
[TimeControl "180+1"]
[Date "2022.11.30"]
[WhiteClock "0:00:11"]
[BlackClock "0:00:05"]

1. d4 {[%clk 0:03:00]}  Nf6 {[%clk 0:02:58]} 2. Nf3 {[%clk 0:02:59]}  c5 {[%clk 0:02:58]} 3. c3 {[%clk 0:02:57]}  d5 {[%clk 0:02:52]} 4. Bf4 {[%clk 0:02:56]}  Nc6 {[%clk 0:02:51]} 5. e3 {[%clk 0:02:55]}  g6 {[%clk 0:02:51]} 6. Nbd2 {[%clk 0:02:55]}  Bg7 {[%clk 0:02:51]} 7. h3 {[%clk 0:02:56]}  O-O {[%clk 0:02:50]} 8. dxc5 {[%clk 0:02:56]}  Nd7 {[%clk 0:02:46]} 9. Nb3 {[%clk 0:02:56]}  e5 {[%clk 0:02:46]} 10. Bh2 {[%clk 0:02:56]}  e4 {[%clk 0:02:40]} 11. Nfd4 {[%clk 0:02:54]}  Nde5 {[%clk 0:02:30]} 12. Be2 {[%clk 0:02:51]}  Qe7 {[%clk 0:02:22]} 13. O-O {[%clk 0:02:50]}  f5 {[%clk 0:01:55]} 14. Qc2 {[%clk 0:02:43]}  g5 {[%clk 0:01:47]} 15. c4 {[%clk 0:02:42]}  dxc4 {[%clk 0:01:37]} 16. Bxc4+ {[%clk 0:02:42]}  Kh8 {[%clk 0:01:32]} 17. Rad1 {[%clk 0:02:25]}  Nb4 {[%clk 0:01:16]} 18. Qc3 {[%clk 0:02:21]}  Nxa2 {[%clk 0:01:15]} 19. Qa5 {[%clk 0:01:43]}  Nxc4 {[%clk 0:01:12]} 20. Qxa2 {[%clk 0:01:44]}  Ne5 {[%clk 0:00:57]} 21. Qa5 {[%clk 0:01:30]}  f4 {[%clk 0:00:34]} 22. exf4 {[%clk 0:01:22]}  gxf4 {[%clk 0:00:34]} 23. Qe1 {[%clk 0:01:23]}  f3 {[%clk 0:00:29]} 24. Qxe4 {[%clk 0:01:16]}  fxg2 {[%clk 0:00:28]} 25. Qxg2 {[%clk 0:01:17]}  Be6 {[%clk 0:00:21]} 26. Rfe1 {[%clk 0:01:02]}  Bxb3 {[%clk 0:00:19]} 27. Nxb3 {[%clk 0:01:03]}  Nf3+ {[%clk 0:00:19]} 28. Qxf3 {[%clk 0:00:57]}  Qxe1+ {[%clk 0:00:19]} 29. Rxe1 {[%clk 0:00:58]}  Rxf3 {[%clk 0:00:20]} 30. Na5 {[%clk 0:00:59]}  b6 {[%clk 0:00:19]} 31. cxb6 {[%clk 0:00:51]}  axb6 {[%clk 0:00:20]} 32. Nc4 {[%clk 0:00:51]}  Rb3 {[%clk 0:00:19]} 33. Re7 {[%clk 0:00:37]}  b5 {[%clk 0:00:19]} 34. Ne5 {[%clk 0:00:35]}  Rxb2 {[%clk 0:00:19]} 35. Kg2 {[%clk 0:00:32]}  Rf8 {[%clk 0:00:18]} 36. Bg3 {[%clk 0:00:27]}  b4 {[%clk 0:00:15]} 37. Rb7 {[%clk 0:00:27]}  Kg8 {[%clk 0:00:14]} 38. Nd3 {[%clk 0:00:24]}  Rb3 {[%clk 0:00:13]} 39. Nc5 {[%clk 0:00:24]}  Rb1 {[%clk 0:00:11]} 40. Ne6 {[%clk 0:00:24]}  Rf7 {[%clk 0:00:11]} 41. Rb8+ {[%clk 0:00:25]}  Bf8 {[%clk 0:00:11]} 42. Bd6 {[%clk 0:00:23]}  Rf6 {[%clk 0:00:10]} 43. f4 {[%clk 0:00:05]}  Rxe6 {[%clk 0:00:07]} 44. Bxf8 {[%clk 0:00:05]}  Kf7 {[%clk 0:00:07]} 45. Bc5 {[%clk 0:00:05]}  b3 {[%clk 0:00:06]} 46. f5 {[%clk 0:00:05]}  Re5 {[%clk 0:00:06]} 47. Rb7+ {[%clk 0:00:04]}  Ke8 {[%clk 0:00:06]} 48. Rb8+ {[%clk 0:00:04]}  Kd7 {[%clk 0:00:06]} 49. f6 {[%clk 0:00:03]}  Rxc5 {[%clk 0:00:06]} 50. f7 {[%clk 0:00:04]}  Rf5 {[%clk 0:00:05]} 51. f8=Q {[%clk 0:00:05]}  Rxf8 {[%clk 0:00:06]} 52. Rxf8 {[%clk 0:00:05]}  Kc7 {[%clk 0:00:05]} 53. Rf7+ {[%clk 0:00:06]}  Kc6 {[%clk 0:00:05]} 54. Rf6+ {[%clk 0:00:06]}  Kc5 {[%clk 0:00:05]} 55. Rf8 {[%clk 0:00:07]}  Kc4 {[%clk 0:00:05]} 56. Rc8+ {[%clk 0:00:06]}  Kb4 {[%clk 0:00:05]} 57. Rb8+ {[%clk 0:00:07]}  Ka3 {[%clk 0:00:05]} 58. Ra8+ {[%clk 0:00:07]}  Kb2 {[%clk 0:00:05]} 59. Kg3 {[%clk 0:00:08]}  Rg1+ {[%clk 0:00:05]} 60. Kh4 {[%clk 0:00:08]}  Kc2 {[%clk 0:00:05]} 61. Rc8+ {[%clk 0:00:08]}  Kb1 {[%clk 0:00:05]} 62. Kh5 {[%clk 0:00:09]}  Rg6 {[%clk 0:00:06]} 63. h4 {[%clk 0:00:08]}  b2 {[%clk 0:00:06]} 64. Rc1+ {[%clk 0:00:09]}  Ka2 {[%clk 0:00:04]} 65. Ra1+ {[%clk 0:00:10]}  Kb3 {[%clk 0:00:04]} 66. Ra3+ {[%clk 0:00:11]}  Kb4 {[%clk 0:00:04]} 67. Rb3+ {[%clk 0:00:11]}  Kxb3 {[%clk 0:00:05]} 1/2-1/2


[Site "https://www.chess.com"]

[Event "Titled Tuesday Blitz November 29 Early 2022"]
[White "Lenderman, Aleksandr"]
[Black "Megalios, Konstantinos"]
[WhiteFideId "2021285"]
[BlackFideId "4238044"]
[WhiteElo "2607"]
[BlackElo "2277"]
[Result "1-0"]
[Round "02"]
[TimeControl "180+1"]
[Date "2022.11.30"]
[WhiteClock "0:01:23"]
[BlackClock "0:00:08"]

1. e4 {[%clk 0:02:56]}  c5 {[%clk 0:02:56]} 2. d4 {[%clk 0:02:55]}  cxd4 {[%clk 0:02:55]} 3. c3 {[%clk 0:02:55]}  dxc3 {[%clk 0:02:56]} 4. Nxc3 {[%clk 0:02:55]}  Nc6 {[%clk 0:02:56]} 5. Nf3 {[%clk 0:02:55]}  e6 {[%clk 0:02:57]} 6. Bc4 {[%clk 0:02:54]}  Bb4 {[%clk 0:02:57]} 7. O-O {[%clk 0:02:54]}  Nge7 {[%clk 0:02:58]} 8. Nb5 {[%clk 0:02:46]}  d5 {[%clk 0:02:45]} 9. exd5 {[%clk 0:02:45]}  exd5 {[%clk 0:02:42]} 10. Bxd5 {[%clk 0:02:45]}  Nxd5 {[%clk 0:02:33]} 11. Qxd5 {[%clk 0:02:46]}  O-O {[%clk 0:02:08]} 12. Qxd8 {[%clk 0:02:45]}  Rxd8 {[%clk 0:02:08]} 13. Be3 {[%clk 0:02:46]}  Bg4 {[%clk 0:02:00]} 14. Nfd4 {[%clk 0:02:45]}  Nxd4 {[%clk 0:01:59]} 15. Nxd4 {[%clk 0:02:45]}  Rac8 {[%clk 0:01:56]} 16. Rfc1 {[%clk 0:02:44]}  Rxc1+ {[%clk 0:01:47]} 17. Rxc1 {[%clk 0:02:43]}  Rc8 {[%clk 0:01:47]} 18. Rxc8+ {[%clk 0:02:37]}  Bxc8 {[%clk 0:01:48]} 19. a3 {[%clk 0:02:37]}  Be7 {[%clk 0:01:45]} 20. Nb5 {[%clk 0:02:26]}  a6 {[%clk 0:01:42]} 21. Nc3 {[%clk 0:02:27]}  f6 {[%clk 0:01:32]} 22. Nd5 {[%clk 0:02:26]}  Bd6 {[%clk 0:01:29]} 23. Bf4 {[%clk 0:02:27]}  Bf8 {[%clk 0:01:23]} 24. f3 {[%clk 0:02:26]}  Kf7 {[%clk 0:01:23]} 25. Be3 {[%clk 0:02:23]}  Bd7 {[%clk 0:01:21]} 26. Kf2 {[%clk 0:02:23]}  Bc6 {[%clk 0:01:21]} 27. Nc3 {[%clk 0:02:23]}  g5 {[%clk 0:01:19]} 28. Bd4 {[%clk 0:02:22]}  h6 {[%clk 0:01:19]} 29. g4 {[%clk 0:02:22]}  Ke6 {[%clk 0:01:19]} 30. Ne4 {[%clk 0:02:16]}  f5 {[%clk 0:01:12]} 31. Ng3 {[%clk 0:02:16]}  f4 {[%clk 0:00:56]} 32. Nf5 {[%clk 0:02:15]}  h5 {[%clk 0:00:49]} 33. h3 {[%clk 0:02:02]}  hxg4 {[%clk 0:00:46]} 34. hxg4 {[%clk 0:02:03]}  Ba4 {[%clk 0:00:43]} 35. Bc3 {[%clk 0:01:59]}  Bc5+ {[%clk 0:00:35]} 36. Kg2 {[%clk 0:02:00]}  Bc2 {[%clk 0:00:34]} 37. Bd4 {[%clk 0:01:56]}  Bf8 {[%clk 0:00:30]} 38. Bh8 {[%clk 0:01:53]}  Bb1 {[%clk 0:00:29]} 39. Nd4+ {[%clk 0:01:52]}  Kd5 {[%clk 0:00:29]} 40. Bf6 {[%clk 0:01:47]}  Bc5 {[%clk 0:00:26]} 41. Ne2 {[%clk 0:01:46]}  Bd3 {[%clk 0:00:21]} 42. Nc1 {[%clk 0:01:39]}  Bc4 {[%clk 0:00:19]} 43. b3 {[%clk 0:01:39]}  Bb5 {[%clk 0:00:17]} 44. a4 {[%clk 0:01:40]}  Bc6 {[%clk 0:00:17]} 45. Bxg5 {[%clk 0:01:40]}  Be3 {[%clk 0:00:17]} 46. Nd3 {[%clk 0:01:39]}  Kd4 {[%clk 0:00:16]} 47. Nxf4 {[%clk 0:01:39]}  Kc3 {[%clk 0:00:13]} 48. Nd5+ {[%clk 0:01:36]}  Bxd5 {[%clk 0:00:13]} 49. Bxe3 {[%clk 0:01:37]}  a5 {[%clk 0:00:12]} 50. Bb6 {[%clk 0:01:33]}  Kxb3 {[%clk 0:00:12]} 51. Bxa5 {[%clk 0:01:34]}  Kxa4 {[%clk 0:00:12]} 52. Bd2 {[%clk 0:01:29]}  Kb3 {[%clk 0:00:11]} 53. Kg3 {[%clk 0:01:29]}  Kc2 {[%clk 0:00:11]} 54. Bb4 {[%clk 0:01:26]}  Kd3 {[%clk 0:00:12]} 55. f4 {[%clk 0:01:27]}  Ke4 {[%clk 0:00:12]} 56. f5 {[%clk 0:01:27]}  Bf7 {[%clk 0:00:11]} 57. Kh4 {[%clk 0:01:25]}  Ke5 {[%clk 0:00:09]} 58. Kg5 {[%clk 0:01:24]}  Bc4 {[%clk 0:00:08]} 59. Bc3+ {[%clk 0:01:24]}  Kd6 {[%clk 0:00:08]} 60. Kf6 {[%clk 0:01:25]}  b5 {[%clk 0:00:06]} 61. g5 {[%clk 0:01:24]}  Kc5 {[%clk 0:00:07]} 62. g6 {[%clk 0:01:23]}  b4 {[%clk 0:00:08]} 63. Bxb4+ {[%clk 0:01:23]}  Kxb4 {[%clk 0:00:08]} 64. Ke7 {[%clk 0:01:24]}  Kc5 {[%clk 0:00:08]} 65. f6 {[%clk 0:01:23]} 1-0


[Site "https://www.chess.com"]

[Event "Titled Tuesday Blitz November 29 Early 2022"]
[White "Lesbekova, Assel"]
[Black "Pourkashiyan, Atousa"]
[WhiteFideId "13713248"]
[BlackFideId "12502014"]
[WhiteElo "1700"]
[BlackElo "2247"]
[Result "1-0"]
[Round "02"]
[TimeControl "180+1"]
[Date "2022.11.30"]
[WhiteClock "0:00:03"]
[BlackClock "0:00:19"]

1. e4 {[%clk 0:03:00]}  c5 {[%clk 0:02:29]} 2. Nc3 {[%clk 0:02:59]}  e6 {[%clk 0:02:29]} 3. Nge2 {[%clk 0:02:57]}  a6 {[%clk 0:02:30]} 4. g3 {[%clk 0:02:56]}  b5 {[%clk 0:02:30]} 5. a3 {[%clk 0:02:49]}  Bb7 {[%clk 0:02:28]} 6. Bg2 {[%clk 0:02:48]}  Nf6 {[%clk 0:02:20]} 7. d3 {[%clk 0:02:39]}  Nc6 {[%clk 0:02:08]} 8. O-O {[%clk 0:02:37]}  Be7 {[%clk 0:02:08]} 9. d4 {[%clk 0:02:32]}  cxd4 {[%clk 0:02:08]} 10. Nxd4 {[%clk 0:02:32]}  Qc7 {[%clk 0:02:07]} 11. Be3 {[%clk 0:02:22]}  O-O {[%clk 0:02:06]} 12. f4 {[%clk 0:02:09]}  d6 {[%clk 0:02:05]} 13. f5 {[%clk 0:02:04]}  Nxd4 {[%clk 0:01:47]} 14. Qxd4 {[%clk 0:01:46]}  Ng4 {[%clk 0:01:42]} 15. Qb6 {[%clk 0:01:32]}  Qd7 {[%clk 0:01:29]} 16. Kh1 {[%clk 0:01:18]}  Bd8 {[%clk 0:01:10]} 17. Qd4 {[%clk 0:01:16]}  Bf6 {[%clk 0:01:10]} 18. Qd2 {[%clk 0:01:01]}  Nxe3 {[%clk 0:01:10]} 19. Qxe3 {[%clk 0:01:00]}  Rac8 {[%clk 0:01:11]} 20. Rad1 {[%clk 0:00:51]}  Qc7 {[%clk 0:01:08]} 21. Rd3 {[%clk 0:00:43]}  h6 {[%clk 0:01:09]} 22. fxe6 {[%clk 0:00:35]}  fxe6 {[%clk 0:01:09]} 23. Bh3 {[%clk 0:00:34]}  Qe7 {[%clk 0:01:03]} 24. Rfd1 {[%clk 0:00:30]}  Rc4 {[%clk 0:00:41]} 25. Bg2 {[%clk 0:00:30]}  Be5 {[%clk 0:00:35]} 26. R1d2 {[%clk 0:00:18]}  Kh8 {[%clk 0:00:30]} 27. Nd1 {[%clk 0:00:16]}  Qe8 {[%clk 0:00:19]} 28. b3 {[%clk 0:00:16]}  Rc7 {[%clk 0:00:18]} 29. Rf2 {[%clk 0:00:13]}  Rcf7 {[%clk 0:00:16]} 30. Rdd2 {[%clk 0:00:11]}  Qa8 {[%clk 0:00:15]} 31. Rxf7 {[%clk 0:00:11]}  Rxf7 {[%clk 0:00:15]} 32. Rf2 {[%clk 0:00:10]}  Rxf2 {[%clk 0:00:15]} 33. Nxf2 {[%clk 0:00:09]}  Bxe4 {[%clk 0:00:16]} 34. Bxe4 {[%clk 0:00:09]}  Qc8 {[%clk 0:00:16]} 35. Qf3 {[%clk 0:00:08]}  Bb2 {[%clk 0:00:13]} 36. a4 {[%clk 0:00:07]}  bxa4 {[%clk 0:00:12]} 37. bxa4 {[%clk 0:00:07]}  Bd4 {[%clk 0:00:12]} 38. Bd3 {[%clk 0:00:07]}  d5 {[%clk 0:00:12]} 39. Kg2 {[%clk 0:00:06]}  Qc5 {[%clk 0:00:11]} 40. Nh3 {[%clk 0:00:05]}  Kg8 {[%clk 0:00:10]} 41. Qh5 {[%clk 0:00:04]}  Qc8 {[%clk 0:00:08]} 42. Qg6 {[%clk 0:00:04]}  Bf6 {[%clk 0:00:08]} 43. Nf4 {[%clk 0:00:04]}  Bc3 {[%clk 0:00:06]} 44. Qxe6+ {[%clk 0:00:03]}  Qxe6 {[%clk 0:00:06]} 45. Nxe6 {[%clk 0:00:04]}  a5 {[%clk 0:00:05]} 46. Nc7 {[%clk 0:00:04]}  Kf7 {[%clk 0:00:05]} 47. Nxd5 {[%clk 0:00:04]}  Bd2 {[%clk 0:00:05]} 48. Nf4 {[%clk 0:00:04]}  Kf6 {[%clk 0:00:06]} 49. Kf3 {[%clk 0:00:04]}  Ke5 {[%clk 0:00:06]} 50. Nh5 {[%clk 0:00:04]}  g5 {[%clk 0:00:06]} 51. h4 {[%clk 0:00:03]}  Bc3 {[%clk 0:00:06]} 52. hxg5 {[%clk 0:00:03]}  hxg5 {[%clk 0:00:07]} 53. Kg4 {[%clk 0:00:03]}  Bd2 {[%clk 0:00:06]} 54. Ng7 {[%clk 0:00:04]}  Kf6 {[%clk 0:00:05]} 55. Nf5 {[%clk 0:00:05]}  Bc1 {[%clk 0:00:05]} 56. Nd4 {[%clk 0:00:04]}  Be3 {[%clk 0:00:05]} 57. Nc6 {[%clk 0:00:05]}  Bd2 {[%clk 0:00:06]} 58. c4 {[%clk 0:00:05]}  Ke6 {[%clk 0:00:06]} 59. Nd4+ {[%clk 0:00:04]}  Kd6 {[%clk 0:00:05]} 60. Nb3 {[%clk 0:00:05]}  Bc3 {[%clk 0:00:04]} 61. Kxg5 {[%clk 0:00:05]}  Be1 {[%clk 0:00:04]} 62. g4 {[%clk 0:00:04]}  Bc3 {[%clk 0:00:04]} 63. Kf5 {[%clk 0:00:05]}  Ke7 {[%clk 0:00:04]} 64. g5 {[%clk 0:00:05]}  Kf7 {[%clk 0:00:05]} 65. g6+ {[%clk 0:00:04]}  Ke7 {[%clk 0:00:05]} 66. c5 {[%clk 0:00:05]}  Bb2 {[%clk 0:00:05]} 67. Nxa5 {[%clk 0:00:04]}  Bd4 {[%clk 0:00:04]} 68. Nb3 {[%clk 0:00:05]}  Bc3 {[%clk 0:00:05]} 69. a5 {[%clk 0:00:05]}  Kd7 {[%clk 0:00:05]} 70. a6 {[%clk 0:00:05]}  Kc6 {[%clk 0:00:06]} 71. a7 {[%clk 0:00:06]}  Kb7 {[%clk 0:00:06]} 72. Ke6 {[%clk 0:00:05]}  Kxa7 {[%clk 0:00:07]} 73. Kf7 {[%clk 0:00:05]}  Kb7 {[%clk 0:00:07]} 74. g7 {[%clk 0:00:05]}  Bxg7 {[%clk 0:00:06]} 75. Kxg7 {[%clk 0:00:06]}  Kc6 {[%clk 0:00:07]} 76. Kf7 {[%clk 0:00:06]}  Kd7 {[%clk 0:00:08]} 77. Bf5+ {[%clk 0:00:05]}  Kc6 {[%clk 0:00:09]} 78. Be4+ {[%clk 0:00:05]}  Kc7 {[%clk 0:00:10]} 79. c6 {[%clk 0:00:06]}  Kd6 {[%clk 0:00:10]} 80. Kf6 {[%clk 0:00:06]}  Kc7 {[%clk 0:00:11]} 81. Ke7 {[%clk 0:00:06]}  Kb6 {[%clk 0:00:12]} 82. Kd6 {[%clk 0:00:05]}  Kb5 {[%clk 0:00:13]} 83. Nd2 {[%clk 0:00:05]}  Kb4 {[%clk 0:00:14]} 84. c7 {[%clk 0:00:05]}  Ka3 {[%clk 0:00:15]} 85. c8=Q {[%clk 0:00:06]}  Kb2 {[%clk 0:00:16]} 86. Qc4 {[%clk 0:00:04]}  Ka1 {[%clk 0:00:17]} 87. Nb3+ {[%clk 0:00:03]}  Ka2 {[%clk 0:00:18]} 88. Qc2+ {[%clk 0:00:03]}  Ka3 {[%clk 0:00:18]} 89. Qc1+ {[%clk 0:00:04]}  Kb4 {[%clk 0:00:19]} 90. Nd2 {[%clk 0:00:03]}  Ka5 {[%clk 0:00:19]} 91. Kc5 {[%clk 0:00:03]}  Ka4 {[%clk 0:00:19]} 92. Qa1# {[%clk 0:00:03]} 1-0


[Site "https://www.chess.com"]

[Event "Titled Tuesday Blitz November 29 Early 2022"]
[White "Lucas, Arthur"]
[Black "Zaksaite, Salomeja"]
[WhiteFideId "26093073"]
[BlackFideId "12801496"]
[WhiteElo "2251"]
[BlackElo "2079"]
[Result "1-0"]
[Round "02"]
[TimeControl "180+1"]
[Date "2022.11.30"]
[WhiteClock "0:01:55"]
[BlackClock "0:01:48"]

1. d4 {[%clk 0:03:00]}  Nf6 {[%clk 0:02:57]} 2. c4 {[%clk 0:03:01]}  g6 {[%clk 0:02:57]} 3. Nc3 {[%clk 0:03:01]}  d6 {[%clk 0:02:56]} 4. e4 {[%clk 0:03:01]}  Bg7 {[%clk 0:02:56]} 5. Be3 {[%clk 0:02:59]}  O-O {[%clk 0:02:56]} 6. Be2 {[%clk 0:02:59]}  c5 {[%clk 0:02:55]} 7. d5 {[%clk 0:02:54]}  e6 {[%clk 0:02:54]} 8. h3 {[%clk 0:02:46]}  exd5 {[%clk 0:02:54]} 9. exd5 {[%clk 0:02:46]}  a6 {[%clk 0:02:53]} 10. Nf3 {[%clk 0:02:45]}  Re8 {[%clk 0:02:53]} 11. O-O {[%clk 0:02:45]}  Ne4 {[%clk 0:02:53]} 12. Nxe4 {[%clk 0:02:43]}  Rxe4 {[%clk 0:02:53]} 13. Bd3 {[%clk 0:02:44]}  Re8 {[%clk 0:02:49]} 14. b3 {[%clk 0:02:36]}  Bxa1 {[%clk 0:02:39]} 15. Qxa1 {[%clk 0:02:37]}  f5 {[%clk 0:02:37]} 16. Bh6 {[%clk 0:02:27]}  Qc7 {[%clk 0:02:36]} 17. Ng5 {[%clk 0:02:19]}  b5 {[%clk 0:02:31]} 18. Re1 {[%clk 0:01:59]}  Rxe1+ {[%clk 0:02:19]} 19. Qxe1 {[%clk 0:02:00]}  Qd7 {[%clk 0:02:16]} 20. cxb5 {[%clk 0:01:55]}  axb5 {[%clk 0:02:14]} 21. Bxb5 {[%clk 0:01:56]}  Qxb5 {[%clk 0:01:48]} 22. Qe7 {[%clk 0:01:55]} 1-0


[Site "https://www.chess.com"]

[Event "Titled Tuesday Blitz November 29 Early 2022"]
[White "Makhmudov, Shukhrat"]
[Black "Sai Han Thiha"]
[WhiteFideId "14200775"]
[BlackFideId "13012290"]
[WhiteElo "2135"]
[BlackElo "2023"]
[Result "1-0"]
[Round "02"]
[TimeControl "180+1"]
[Date "2022.11.30"]
[WhiteClock "0:02:07"]
[BlackClock "0:01:07"]

1. e4 {[%clk 0:02:54]}  c6 {[%clk 0:03:00]} 2. d4 {[%clk 0:02:53]}  d5 {[%clk 0:03:00]} 3. Nc3 {[%clk 0:02:54]}  dxe4 {[%clk 0:03:01]} 4. Nxe4 {[%clk 0:02:55]}  Nf6 {[%clk 0:03:02]} 5. Nxf6+ {[%clk 0:02:55]}  exf6 {[%clk 0:03:02]} 6. c3 {[%clk 0:02:56]}  Bd6 {[%clk 0:03:03]} 7. Bd3 {[%clk 0:02:56]}  O-O {[%clk 0:03:03]} 8. Qc2 {[%clk 0:02:57]}  Re8+ {[%clk 0:03:04]} 9. Ne2 {[%clk 0:02:57]}  h5 {[%clk 0:03:04]} 10. O-O {[%clk 0:02:44]}  h4 {[%clk 0:02:55]} 11. Bf4 {[%clk 0:02:37]}  Rxe2 {[%clk 0:02:53]} 12. Qxe2 {[%clk 0:02:36]}  Bxf4 {[%clk 0:02:53]} 13. Qe4 {[%clk 0:02:35]}  Bd6 {[%clk 0:01:38]} 14. Rae1 {[%clk 0:02:14]}  Be6 {[%clk 0:01:16]} 15. Qh7+ {[%clk 0:02:13]}  Kf8 {[%clk 0:01:16]} 16. Qh8+ {[%clk 0:02:09]}  Ke7 {[%clk 0:01:16]} 17. Rxe6+ {[%clk 0:02:08]}  Kxe6 {[%clk 0:01:07]} 18. Qxd8 {[%clk 0:02:07]} 1-0


[Site "https://www.chess.com"]

[Event "Titled Tuesday Blitz November 29 Early 2022"]
[White "Maksimenko, Viktor"]
[Black "Yano, William Jorge Froes"]
[WhiteFideId "13710478"]
[BlackFideId "2112949"]
[WhiteElo "2277"]
[BlackElo "2122"]
[Result "1-0"]
[Round "02"]
[TimeControl "180+1"]
[Date "2022.11.30"]
[WhiteClock "0:01:31"]
[BlackClock "0:00:46"]

1. d4 {[%clk 0:03:00]}  Nf6 {[%clk 0:02:59]} 2. c4 {[%clk 0:03:01]}  c5 {[%clk 0:02:59]} 3. d5 {[%clk 0:03:01]}  b5 {[%clk 0:02:59]} 4. cxb5 {[%clk 0:03:02]}  a6 {[%clk 0:03:00]} 5. bxa6 {[%clk 0:03:03]}  g6 {[%clk 0:02:59]} 6. Nc3 {[%clk 0:03:03]}  Bxa6 {[%clk 0:02:59]} 7. e4 {[%clk 0:03:04]}  Bxf1 {[%clk 0:03:00]} 8. Kxf1 {[%clk 0:03:05]}  d6 {[%clk 0:03:00]} 9. g3 {[%clk 0:03:06]}  Bg7 {[%clk 0:03:01]} 10. Kg2 {[%clk 0:03:06]}  O-O {[%clk 0:03:01]} 11. Nf3 {[%clk 0:03:07]}  Na6 {[%clk 0:03:01]} 12. a4 {[%clk 0:03:08]}  Ne8 {[%clk 0:03:00]} 13. Ra3 {[%clk 0:03:07]}  Nec7 {[%clk 0:03:00]} 14. Qe2 {[%clk 0:03:08]}  Nb4 {[%clk 0:02:55]} 15. Re1 {[%clk 0:03:05]}  f6 {[%clk 0:02:53]} 16. Nd2 {[%clk 0:02:56]}  Qc8 {[%clk 0:02:52]} 17. Nc4 {[%clk 0:02:45]}  Qa6 {[%clk 0:02:50]} 18. h4 {[%clk 0:02:42]}  Rfb8 {[%clk 0:02:30]} 19. h5 {[%clk 0:02:38]}  Kf7 {[%clk 0:02:29]} 20. b3 {[%clk 0:02:35]}  Qb7 {[%clk 0:02:13]} 21. Bb2 {[%clk 0:02:29]}  Ra7 {[%clk 0:02:04]} 22. f3 {[%clk 0:02:16]}  Qc8 {[%clk 0:02:04]} 23. Rh1 {[%clk 0:02:16]}  Rab7 {[%clk 0:01:54]} 24. Bc1 {[%clk 0:02:15]}  Nba6 {[%clk 0:01:43]} 25. Na5 {[%clk 0:02:15]}  Rb6 {[%clk 0:01:28]} 26. Nc6 {[%clk 0:02:09]}  R8b7 {[%clk 0:01:26]} 27. hxg6+ {[%clk 0:01:49]}  hxg6 {[%clk 0:01:26]} 28. Rh7 {[%clk 0:01:49]}  Kg8 {[%clk 0:01:26]} 29. Nxe7+ {[%clk 0:01:49]}  Kxh7 {[%clk 0:01:26]} 30. Nxc8 {[%clk 0:01:50]}  Rxb3 {[%clk 0:01:26]} 31. Rxb3 {[%clk 0:01:49]}  Rxb3 {[%clk 0:01:27]} 32. Qc2 {[%clk 0:01:47]}  Rb8 {[%clk 0:01:23]} 33. Nxd6 {[%clk 0:01:47]}  Nb4 {[%clk 0:01:23]} 34. Qe2 {[%clk 0:01:47]}  f5 {[%clk 0:01:19]} 35. Ncb5 {[%clk 0:01:46]}  Nxb5 {[%clk 0:01:18]} 36. axb5 {[%clk 0:01:47]}  Ra8 {[%clk 0:01:18]} 37. Bd2 {[%clk 0:01:41]}  Ra2 {[%clk 0:01:17]} 38. Qe3 {[%clk 0:01:36]}  Nc2 {[%clk 0:01:07]} 39. Qb3 {[%clk 0:01:35]}  Nb4 {[%clk 0:01:05]} 40. Nc4 {[%clk 0:01:35]}  fxe4 {[%clk 0:00:55]} 41. fxe4 {[%clk 0:01:32]}  Ra1 {[%clk 0:00:54]} 42. Bxb4 {[%clk 0:01:31]}  cxb4 {[%clk 0:00:54]} 43. e5 {[%clk 0:01:31]}  Re1 {[%clk 0:00:49]} 44. d6 {[%clk 0:01:31]}  Re2+ {[%clk 0:00:47]} 45. Kf3 {[%clk 0:01:31]}  Re1 {[%clk 0:00:46]} 46. d7 {[%clk 0:01:31]} 1-0


[Site "https://www.chess.com"]

[Event "Titled Tuesday Blitz November 29 Early 2022"]
[White "Malka, Samuel"]
[Black "Larina, Maria"]
[WhiteFideId "20643675"]
[BlackFideId "24113182"]
[WhiteElo "2449"]
[BlackElo "1848"]
[Result "1-0"]
[Round "02"]
[TimeControl "180+1"]
[Date "2022.11.30"]
[WhiteClock "0:00:47"]
[BlackClock "0:00:08"]

1. d4 {[%clk 0:03:00]}  f5 {[%clk 0:02:59]} 2. g3 {[%clk 0:02:59]}  Nf6 {[%clk 0:02:58]} 3. Bg2 {[%clk 0:02:59]}  g6 {[%clk 0:02:58]} 4. Nd2 {[%clk 0:02:57]}  Bg7 {[%clk 0:02:58]} 5. e4 {[%clk 0:02:55]}  fxe4 {[%clk 0:02:58]} 6. Nxe4 {[%clk 0:02:56]}  Nxe4 {[%clk 0:02:52]} 7. Bxe4 {[%clk 0:02:56]}  d5 {[%clk 0:02:53]} 8. Bg2 {[%clk 0:02:48]}  O-O {[%clk 0:02:29]} 9. Bf4 {[%clk 0:02:43]}  Nc6 {[%clk 0:01:39]} 10. Ne2 {[%clk 0:02:32]}  Bg4 {[%clk 0:01:32]} 11. f3 {[%clk 0:02:31]}  Bf5 {[%clk 0:01:22]} 12. Qd2 {[%clk 0:02:14]}  e5 {[%clk 0:01:19]} 13. dxe5 {[%clk 0:02:15]}  Nxe5 {[%clk 0:01:18]} 14. O-O-O {[%clk 0:02:16]}  c6 {[%clk 0:01:12]} 15. Nd4 {[%clk 0:01:59]}  Nc4 {[%clk 0:01:06]} 16. Qb4 {[%clk 0:02:00]}  Qb6 {[%clk 0:00:35]} 17. Qxb6 {[%clk 0:01:43]}  axb6 {[%clk 0:00:36]} 18. a3 {[%clk 0:01:39]}  Bd7 {[%clk 0:00:31]} 19. c3 {[%clk 0:01:35]}  Rfe8 {[%clk 0:00:30]} 20. Rhe1 {[%clk 0:01:31]}  h6 {[%clk 0:00:25]} 21. Bf1 {[%clk 0:01:29]}  Na5 {[%clk 0:00:23]} 22. Kc2 {[%clk 0:01:22]}  Rxe1 {[%clk 0:00:19]} 23. Rxe1 {[%clk 0:01:22]}  Re8 {[%clk 0:00:20]} 24. Rxe8+ {[%clk 0:01:20]}  Bxe8 {[%clk 0:00:21]} 25. Bd3 {[%clk 0:01:18]}  Nc4 {[%clk 0:00:20]} 26. Bxc4 {[%clk 0:01:16]}  dxc4 {[%clk 0:00:21]} 27. Ne2 {[%clk 0:01:14]}  c5 {[%clk 0:00:20]} 28. Bc7 {[%clk 0:01:07]}  Bc6 {[%clk 0:00:19]} 29. Bxb6 {[%clk 0:00:59]}  Bf8 {[%clk 0:00:14]} 30. f4 {[%clk 0:00:54]}  Bf3 {[%clk 0:00:14]} 31. Kd2 {[%clk 0:00:54]}  Be4 {[%clk 0:00:14]} 32. Ke3 {[%clk 0:00:53]}  Bf5 {[%clk 0:00:13]} 33. Ng1 {[%clk 0:00:50]}  Bg4 {[%clk 0:00:12]} 34. Nf3 {[%clk 0:00:50]}  Bd6 {[%clk 0:00:10]} 35. Ne5 {[%clk 0:00:49]}  Kg7 {[%clk 0:00:09]} 36. Nxc4 {[%clk 0:00:49]}  Be7 {[%clk 0:00:09]} 37. Ne5 {[%clk 0:00:49]}  Bf5 {[%clk 0:00:08]} 38. g4 {[%clk 0:00:47]} 1-0


[Site "https://www.chess.com"]